Cogmind - Beta 17.1 @@@ ROGUE MODE // 2026.09.12 @ 19:37:11 Player: naththebg Result: Destroyed by H-77 Assassin with Coil Gun Performance ------------- Evolutions (7) 3500 Regions Visited (22) 4400 Robots Destroyed (591) 2955 Value Destroyed (24094) 24094 Prototype IDs (52) 1040 Alien Tech Used (0) 0 Bonus (14836) 14836 TOTAL SCORE: 50825 Bonus ------- High Alert Combat Kills 7888 Follower Combat Kills 1416 Entered Garrisons 1000 Used RIF Installer 2000 Network Hubs Disabled 200 Aligned with FarCom 300 Built Enhanced Grunts 300 A7 Reached Mainframe 300 Met R17 at Cetus 500 Met R17 at Research 2000 Friendly Fire -1068 Cogmind --------- Core Integrity 0/1300 Matter 300/300 Energy 100/100 System Corruption 6% Temperature Cool (0) Movement Core (50) Location -3/Research Parts ------- > --- POWER (1) -------- (None) > --- PROPULSION (2) --- Medium Treads > --- UTILITY (4) ------ Experimental Coolant Injector Improved Targeting Computer Experimental Targeting Computer Experimental Core Analyzer > --- WEAPON (14) ------ (None) > --- INVENTORY (5) ---- Quantum Reactor Advanced Cooling System Experimental Core Analyzer Long-range Tractor Beam Peak State ------------ > --- POWER ------------ Improved Quantum Reactor > --- PROPULSION ------- Centrium Heavy Treads > --- UTILITY ---------- Advanced Cooling System Huge Storage Unit Experimental Targeting Computer Experimental Core Analyzer > --- WEAPON ----------- Autogun Autogun Coil Gun Coil Gun Coil Gun Coil Gun Coil Gun Coil Gun Coil Gun Heavy Machine Gun Heavy Machine Gun KE Penetrator Railgun Helical Railgun > --- INVENTORY -------- Quantum Reactor Quantum Reactor Improved Heavy Treads Centrium Heavy Treads Advanced Cooling System Advanced Cooling System Experimental Coolant Injector Experimental Coolant Injector High-capacity Matter Pod High-capacity Matter Pod Advanced Sensor Array Experimental EM Shield Advanced Component Analysis Suite Long-range Tractor Beam Guided Plasma Cannon Coil Gun Enhanced Gamma Bomb Array Enhanced Gamma Bomb Array Enhanced Gamma Bomb Array Advanced Remote Datajack Longsword +1 PL-3XN's Ring of Power [Rating: 139] Favorites ----------- Power Cold Fusion Reactor Engine Reinforced Deuterium Engine Power Core Light Nuclear Core Reactor Cold Fusion Reactor Propulsion Light Treads Treads Light Treads Wheel Wheel Utility Huge Storage Unit Device Improved Cooling System Storage Huge Storage Unit Processor Improved Signal Interpreter Hackware Relay Coupler [NC] Protection Light Regenerative Plating Weapon Gauss Rifle Energy Gun Advanced Beam Rifle Energy Cannon Improved Matter Neutralizer Ballistic Gun Gauss Rifle Ballistic Cannon Magnetic Acceleration Cannon Launcher Heavy Rocket Launcher Special Weapon Improved Remote Datajack Slashing Weapon Longsword +1 Build | -11 -10 -10 -10 -9 -8 -8 -8 -8 -8 -8 -6 -6 -6 -6 -6 -5 -5 -5 -5 -4 -4 -3 ------- Run | Yrd Mat Min Exi Min Mat Gar Mat Sto Gar Rec Fac Ext Cet Arc Hub Fac Gar Fac Gar Fac Gar Res Slots Evolved 14 | . . . . . 4 . . . . . 4 . . . . 2 . . . 2 . 2 Power . | . . . . . . . . . . . . . . . . . . . . . . . Propulsion . | . . . . . . . . . . . . . . . . . . . . . . . Utility 2 | . . . . . 2 . . . . . . . . . . . . . . . . . Weapon 12 | . . . . . 2 . . . . . 4 . . . . 2 . . . 2 . 2 Parts Attached 217 | 7 5 2 1 . 12 8 12 11 3 3 36 19 18 1 1 9 2 14 12 6 15 20 Power 18 | 1 1 . . . 1 1 2 1 1 . 4 1 1 . . . . 1 . . 1 2 Engine 9 | 1 1 . . . 1 1 1 1 1 . 2 . . . . . . . . . . . Core 1 | . . . . . . . 1 . . . . . . . . . . . . . . . Reactor 8 | . . . . . . . . . . . 2 1 1 . . . . 1 . . 1 2 Propulsion 34 | 2 . . . . 2 4 3 4 . 2 5 3 3 . . . . 1 1 . . 4 Treads 32 | 2 . . . . 2 2 3 4 . 2 5 3 3 . . . . 1 1 . . 4 Leg . | . . . . . . . . . . . . . . . . . . . . . . . Wheel 2 | . . . . . . 2 . . . . . . . . . . . . . . . . Hover . | . . . . . . . . . . . . . . . . . . . . . . . Flight . | . . . . . . . . . . . . . . . . . . . . . . . Utility 64 | 1 3 1 1 . 4 2 3 3 1 . 7 4 8 . 1 3 1 6 2 2 4 7 Device 29 | . 1 1 . . 2 1 1 2 1 . 3 . 3 . 1 1 1 4 1 1 3 2 Storage 5 | 1 2 . 1 . . . . . . . . . 1 . . . . . . . . . Processor 14 | . . . . . . . . . . . 2 3 . . . 2 . . 1 . 1 5 Hackware 1 | . . . . . . . . . . . . . . . . . . . . 1 . . Protection 15 | . . . . . 2 1 2 1 . . 2 1 4 . . . . 2 . . . . Artifact . | . . . . . . . . . . . . . . . . . . . . . . . Weapon 101 | 3 1 1 . . 5 1 4 3 1 1 20 11 6 1 . 6 1 6 9 4 10 7 Energy Gun 4 | 2 . . . . . . . 1 . . . . . . . . . 1 . . . . Energy Cannon 4 | . . . . . . . . . . . 1 1 . . . . . 1 1 . . . Ballistic Gun 76 | 1 . 1 . . 4 1 3 2 1 1 16 8 6 1 . 5 1 3 6 2 9 5 Ballistic Cannon 2 | . . . . . . . . . . . . . . . . . . . 1 . 1 . Launcher 9 | . 1 . . . 1 . 1 . . . 3 1 . . . . . 1 . . . 1 Special Weapon 5 | . . . . . . . . . . . . . . . . 1 . . 1 2 . 1 Impact Weapon . | . . . . . . . . . . . . . . . . . . . . . . . Slashing Weapon 1 | . . . . . . . . . . . . 1 . . . . . . . . . . Piercing Weapon . | . . . . . . . . . . . . . . . . . . . . . . . Special Melee Weapon . | . . . . . . . . . . . . . . . . . . . . . . . Unidentified Prototypes 21 | . . . . . . . . 3 . . 3 1 5 . . . . 4 . . . 5 Corrupted Parts 5 | . . . . . . . . . . . . 1 3 . . . . . . . . 1 System Corruption 29 | . . . . . . . . . . . . 5 18 . . . . . . . . 6 Parts Lost 122 | . 3 . . . . 1 8 4 3 . 23 20 6 . 1 2 2 9 8 . 8 24 Power 12 | . 1 . . . . 1 1 1 1 . 3 1 . . . . . . . . 1 2 Propulsion 14 | . . . . . . . 2 . . . 3 3 1 . . . . . 1 . . 4 Utility 16 | . . . . . . . 3 1 1 . 2 4 1 . . 1 . 2 . . 1 . Weapon 80 | . 2 . . . . . 2 2 1 . 15 12 4 . 1 1 2 7 7 . 6 18 Highest Loss Streak 22 | . 3 . . . . 1 3 2 2 . 9 6 5 . 1 1 1 3 4 . 4 22 To Critical Strikes 3 | . . . . . . . . . . . 1 . 1 . . . . . 1 . . . Average Backups 20 | 4 5 9 10 13 14 20 24 24 23 24 20 22 21 23 23 22 22 22 20 19 22 20 Power 1 | . . 1 1 1 . . . 2 1 1 1 2 4 5 5 5 3 2 2 2 2 1 Propulsion 3 | 2 4 3 2 2 2 4 4 4 5 5 5 6 4 3 3 3 2 2 1 1 1 1 Utility 7 | . . 1 2 4 5 5 5 4 3 4 6 6 7 11 11 10 11 11 10 11 11 11 Weapon 7 | . . 3 3 4 6 9 14 13 12 12 6 5 4 3 3 3 5 4 5 5 6 5 Tool/Special . | . . . . . . . . . . . . . . . . . . . . . . . Unused Backups 43 | . . 1 3 . 4 2 . . . . 5 . 2 . . 4 2 5 . . 3 12 Power 4 | . . . . . . . . . . . 1 . . . . . 1 . . . . 2 Propulsion 8 | . . 1 1 . 1 . . . . . 1 . 2 . . 1 . 1 . . . . Utility 18 | . . . . . . . . . . . . . . . . 3 1 2 . . 3 9 Weapon 12 | . . . 2 . 2 2 . . . . 3 . . . . . . 2 . . . 1 Tool/Special 1 | . . . . . 1 . . . . . . . . . . . . . . . . . Average Slot Usage (%) 91 | . 93 100 100 100 99 96 97 91 96 99 94 87 63 91 93 89 93 88 78 83 90 83 Engine 4 | . 13 14 14 14 9 5 5 8 8 9 4 . . . . . . . . . . . Reactor 2 | . . . . . . . . . . . 1 6 6 6 6 5 5 5 5 5 4 3 Treads 11 | . 28 28 28 28 18 5 16 18 18 18 12 12 7 6 6 5 5 5 5 5 5 4 Device 11 | . 10 14 14 14 17 17 16 10 17 18 7 7 5 6 12 11 11 8 8 9 12 9 Storage 7 | . 14 14 14 14 9 9 9 9 9 9 6 6 6 6 6 5 5 5 5 5 5 3 Processor 3 | . . . . . . . . . . . 5 10 4 . . 4 5 5 5 5 2 4 Protection 4 | . . . . . 9 9 8 9 9 9 5 . 8 13 6 . . 1 1 . . . Ballistic Gun 39 | . 10 21 28 14 35 34 35 35 32 35 42 34 15 51 53 49 57 51 29 40 59 52 Launcher 1 | . 7 6 . 13 . 1 . . . . 2 1 2 . . . . . . . . . Peak Build Rating 139 | 6 7 12 14 14 35 40 45 46 44 41 71 73 118 124 124 121 121 120 117 126 126 139 Average Rating 68 | 5 6 9 13 14 31 35 41 44 40 40 59 58 76 122 119 115 117 112 102 113 116 119 On Entrance 61 | . 6 7 12 14 14 30 40 45 44 37 41 60 47 118 124 111 120 110 96 108 118 118 Avg Prop Armor Cover (%) 22 | . . . . . . 6 6 . . . . . . . . . . . . . . 37 Naked Turns . | . . . . . . . . . . . . . . . . . . . . . . . Heaviest Build 162 | 12 89 19 29 30 49 124 128 127 118 118 139 138 155 160 160 155 150 152 151 159 154 162 Greatest Support 80 | 40 40 40 40 40 40 40 40 40 40 40 60 60 80 80 80 80 80 80 80 80 80 80 Greatest Overweight (x) 12 | . 2 . . . 1 12 12 3 2 2 4 3 2 1 1 1 1 1 2 1 1 2 Average Overweight (x) 1 | . . . . . . 6 3 2 2 2 2 1 1 1 1 1 1 1 1 1 1 . Largest Inventory Capacity 25 | 8 25 10 15 15 15 25 25 25 25 25 25 25 25 25 25 25 25 25 25 25 25 25 Average Capacity 23 | 7 19 10 10 15 15 24 25 25 25 25 25 25 25 25 25 25 25 25 25 25 25 24 Most Carried 25 | 6 8 10 12 14 15 25 25 25 24 25 25 25 25 25 25 25 25 25 25 25 25 25 Average Carried 21 | 4 5 9 10 13 14 20 24 24 23 24 20 22 22 24 25 24 24 24 22 21 24 23 Final Capacity 25 | 8 10 10 15 15 15 25 25 25 25 25 25 25 25 25 25 25 25 25 25 25 25 5 Final Carried 25 | 6 8 10 12 14 15 25 25 24 24 25 19 22 25 25 25 25 24 25 21 25 25 4 Class Distribution -------------------- 48% | Scavenger-Executioner 10% | Scavenger-Gunner 7% | Executioner 7% | Skirmisher 7% | Mutant 7% | Scavenger-Skirmisher 6% | Scavenger-Tank Dominant Class ---------------- Mutant | -10/Materials Mutant | -10/Mines Mutant | -10/Exiles Mutant | -9/Mines Scavenger-Tank | -8/Materials Skirmisher | -8/Garrison Scavenger-Skirmisher | -8/Materials Scavenger-Tank | -8/Storage Scavenger-Gunner | -8/Garrison Scavenger-Gunner | -8/Recycling Executioner | -6/Factory Scavenger-Executioner | -6/Extension Scavenger-Mutant | -6/Cetus Scavenger-Executioner | -6/Archives Scavenger-Executioner | -6/Hub_04(d) Scavenger-Executioner | -5/Factory Scavenger-Executioner | -5/Garrison Scavenger-Executioner | -5/Factory Scavenger-Executioner | -5/Garrison Scavenger-Executioner | -4/Factory Scavenger-Executioner | -4/Garrison Scavenger-Executioner | -3/Research Resources | -11 -10 -10 -10 -9 -8 -8 -8 -8 -8 -8 -6 -6 -6 -6 -6 -5 -5 -5 -5 -4 -4 -3 ----------- Run | Yrd Mat Min Exi Min Mat Gar Mat Sto Gar Rec Fac Ext Cet Arc Hub Fac Gar Fac Gar Fac Gar Res Matter Collected 22664 | 270 195 133 10 150 896 847 2049 1043 355 540 2872 2118 491 128 191 1449 1117 2425 1514 375 1784 1712 Remotely . | . . . . . . . . . . . . . . . . . . . . . . . Salvage Created 28964 | 150 515 42 . 188 1438 680 2451 1785 587 980 3951 2895 314 196 480 2050 1661 3344 1643 249 1726 1639 Parts 1386 | 6 34 1 . 16 82 46 129 91 40 44 168 95 14 10 22 101 96 141 76 18 89 67 Haulers Intercepted 22 | . 1 . . . 1 . 2 3 . . 2 7 . . 2 3 . 1 . . . . Recyclers Shooed 15 | 1 1 . . . 1 . 1 . . 3 . 6 . . . 2 . . . . . . Parts Field Recycled . | . . . . . . . . . . . . . . . . . . . . . . . Retrieved Matter . | . . . . . . . . . . . . . . . . . . . . . . . Parts Self-Destructed . | . . . . . . . . . . . . . . . . . . . . . . . Prevented . | . . . . . . . . . . . . . . . . . . . . . . . Parts Restored . | . . . . . . . . . . . . . . . . . . . . . . . Kills | -11 -10 -10 -10 -9 -8 -8 -8 -8 -8 -8 -6 -6 -6 -6 -6 -5 -5 -5 -5 -4 -4 -3 ------- Run | Yrd Mat Min Exi Min Mat Gar Mat Sto Gar Rec Fac Ext Cet Arc Hub Fac Gar Fac Gar Fac Gar Res Combat Hostiles Destroyed 423 | . 9 1 . 8 23 24 41 24 18 8 59 42 5 2 3 12 32 34 28 5 21 24 Guns 325 | . 4 1 . . 20 15 38 24 11 8 34 14 . 2 3 12 32 34 25 5 21 22 Cannons 11 | . . . . . . . . . . . 1 3 4 . . . . . 2 . . 1 AOE 82 | . 3 . . 8 3 9 3 . 7 . 24 25 . . . . . . . . . . Classes Destroyed 23 | 3 5 . . 1 2 1 3 1 2 . 1 1 . . . . . 1 . . . 2 Worker 29 | 1 3 . . . 2 . 2 2 . . 9 3 . . 1 4 . 2 . . . . Builder 22 | . 2 . . 1 1 . . 4 . . 4 5 . . 1 1 . 3 . . . . Tunneler 7 | 2 . . . . 1 . 3 . . . . . . . 1 . . . . . . . Hauler 22 | . 1 . . . 1 . 2 3 . . 2 7 . . 2 3 . 1 . . . . Recycler 48 | 1 1 . . 1 5 . 5 3 . 8 7 9 . . . 5 . 3 . . . . Mechanic 7 | . . . . . . . . 1 . . 3 1 . . . . . 2 . . . . Operator 5 | . 1 . . . . . 1 . . . . 1 . 1 . . . . . . . 1 Watcher 24 | . 2 . . . 2 . 3 2 . . 2 1 . . 2 4 . 4 . 1 . 1 Swarmer 89 | . . . . 4 8 12 8 . 7 . 7 8 . . . 1 16 1 7 3 4 3 Saboteur 2 | . . . . . . . . . . . 1 1 . . . . . . . . . . Grunt 184 | . 9 1 . 4 9 7 21 17 6 . 32 20 . . 1 1 12 14 12 . 7 11 Brawler 14 | . . . . . . 3 2 . . . 2 . . . . . 2 1 3 . . 1 Duelist 9 | . . . . . . . 2 . . . 2 1 . . . . 1 2 1 . . . Protector 1 | . . . . . . . 1 . . . . . . . . . . . . . . . Sentry 40 | . . . . . 5 1 4 5 1 5 4 6 . 2 2 2 . 1 1 . 1 . Demolisher 6 | . . . . . . . . . 1 . . 4 . . . . . . . . . 1 Specialist 3 | . . . . . . . . . . . . . . . . . . 3 . . . . Hunter 20 | . . . . . 1 1 1 2 . . 4 . . . . 2 . 3 . . 6 . Programmer 34 | . . . . . . . . . 3 3 6 . . . . 6 . 7 3 2 2 2 Heavy 5 | . . . . . . . 2 . . . 1 . . . . . . 2 . . . . Behemoth 5 | . . . . . . . . . . . . 2 . . . . 1 . 1 . 1 . Cetus Guard 5 | . . . . . . . . . . . . . 5 . . . . . . . . . Striker 5 | . . . . . . . . . . . . . . . . . . . . . . 5 Executioner 1 | . . . . . . . . . . . . . . . . . . . . . . 1 Thug 1 | . . . . . . . . . . . . 1 . . . . . . . . . . Savage 1 | . . . . . . . . . . . . 1 . . . . . . . . . . Butcher 1 | . . . . . . . . . . . . 1 . . . . . . . . . . Best Kill Streak 14 | 2 4 1 . 8 14 8 8 7 6 7 11 12 2 3 5 7 8 9 6 3 5 6 Combat Bots Only 10 | . 4 1 . 6 9 8 6 5 6 4 7 10 2 2 2 3 8 7 6 3 5 6 Max Kills in Single Turn 6 | 1 3 1 . 2 3 4 3 2 4 2 4 6 1 3 5 2 3 3 2 2 2 2 Gunslinging 2 | . . . . . . . 1 1 1 . 2 . . 1 . . 2 1 . . 1 1 Exploded 5 | . 1 . . 2 3 4 3 . 4 . 3 5 . . . . . . . . . . Melee . | . . . . . . . . . . . . . . . . . . . . . . . Uniques/NPCs Destroyed 1 | . . . . . . . . . . . . . . . . . . . . . . 1 Revision 17++ (-3/Research) Combat | -11 -10 -10 -10 -9 -8 -8 -8 -8 -8 -8 -6 -6 -6 -6 -6 -5 -5 -5 -5 -4 -4 -3 -------- Run | Yrd Mat Min Exi Min Mat Gar Mat Sto Gar Rec Fac Ext Cet Arc Hub Fac Gar Fac Gar Fac Gar Res Hostile Shots Fired 1761 | . 46 3 . 13 45 37 107 101 53 19 347 199 45 1 24 60 68 103 117 12 107 254 Missed 512 | . 10 1 . 7 16 13 39 39 15 6 109 74 15 . 6 13 19 26 20 3 21 60 Hits 1249 | . 36 2 . 6 29 24 68 62 38 13 238 125 30 1 18 47 49 77 97 9 86 194 Melee 23 | . . . . . . . . . . . . . . . . . 1 . 4 . . 18 Projectile 1226 | . 36 2 . 6 29 24 68 62 38 13 238 125 30 1 18 47 48 77 93 9 86 176 AOE 24 | . . . . . . . . . 1 . . 16 . . . . . . . . . 7 Critical Strikes 77 | . . . . . 1 2 5 6 . 1 8 5 5 . . 4 . 5 9 1 2 23 Part Disruptions 2 | . . . . . . . . . . . 1 . . . . . . 1 . . . . Damage Taken 24808 | . 471 34 . 70 440 296 1293 1055 600 190 4215 2697 794 22 354 854 869 1617 1988 288 1543 5118 Core 2843 | . 71 . . 1 51 43 65 160 31 29 300 229 60 . . 79 85 80 138 . 120 1301 Absorbed by Shields 222 | . . . . . . . . . . . . 209 13 . . . . . . . . . Reduced by Siege Mode 381 | . . . . . . . . . . . . . . . . 15 25 59 52 11 40 179 Ignored by Resistances 136 | . . . . . . 38 98 . . . . . . . . . . . . . . . Regen/Repaired (Parts) 566 | . . . . . . . . . 112 29 82 32 . . . . . 311 . . . . Core Remaining (%) 63 | 100 . . . 71 . . . . . 31 . . . . 30 . . . 61 . 89 . Volleys Fired 885 | 12 51 3 . 13 54 37 92 54 30 21 116 77 34 4 8 32 27 52 71 17 44 36 Largest 14 | 2 2 2 . 1 4 4 4 4 4 4 8 8 1 7 7 9 10 10 9 10 12 14 Hottest 451 | 80 80 45 . 30 112 117 112 112 112 112 231 249 120 243 243 304 332 323 418 451 384 414 Shots Fired 4101 | 24 66 6 . 13 201 113 357 217 76 86 565 289 35 24 54 269 232 455 313 66 331 309 Gun 3841 | 24 48 6 . . 196 106 355 217 72 86 532 231 1 24 54 269 232 455 250 54 327 302 Cannon 132 | . . . . . . . . . . . 9 13 34 . . . . . 63 4 4 5 Launcher 120 | . 18 . . 13 5 7 2 . 4 . 24 45 . . . . . . . . . 2 Special 8 | . . . . . . . . . . . . . . . . . . . . 8 . . Kinetic 3718 | . 18 6 . . 196 106 355 217 72 86 494 216 1 24 54 269 232 436 253 54 327 302 Thermal 201 | . . . . . . . . . . . 47 28 34 . . . . 19 60 4 4 5 Explosive 118 | . 18 . . 13 5 7 2 . 4 . 24 45 . . . . . . . . . . Electromagnetic 56 | 24 30 . . . . . . . . . . . . . . . . . . . . 2 Robot Hit Streak 37 | 5 15 4 . 4 9 9 10 8 10 10 21 15 24 30 6 16 28 37 27 7 27 28 Robot Miss Streak 9 | 3 2 1 . 1 3 4 6 6 5 2 8 9 . 1 2 6 7 4 8 2 4 3 Penetration Max 2 | . . . . . 1 1 1 1 1 1 1 1 . 1 1 1 1 1 1 1 . 2 Secondary Targets 86 | . . . . . 5 1 9 5 3 1 11 . . 1 1 3 17 15 2 . 5 7 Max Gunslinging Chain 3 | . . . . . 1 1 1 1 1 1 3 . . 1 1 1 3 2 1 . 1 2 Shots Hit Robots 2263 | 14 40 4 . 4 99 47 202 116 37 48 343 182 18 14 14 133 130 240 169 25 205 179 Core Hits 1293 | 5 31 3 . 15 50 32 102 64 26 19 223 232 9 6 18 69 63 103 60 9 73 81 Critical Kills 54 | . . . . . . 2 2 2 3 . 3 . . 2 . 11 9 10 4 . 2 4 Critical Parts Destroyed 84 | . . . . . 1 1 5 3 . 2 7 3 . 3 8 15 12 9 5 . 5 5 Critical Strikes 143 | 1 . . . . 1 3 7 5 3 2 11 3 . 5 8 26 22 21 9 . 7 9 Burn 2 | . . . . . . . . . . . 1 . . . . . . 1 . . . . Meltdown 1 | . . . . . . . . . . . . . . . . . . . 1 . . . Destroy 139 | . . . . . 1 3 7 5 3 2 10 3 . 5 8 26 22 20 8 . 7 9 Corrupt 1 | 1 . . . . . . . . . . . . . . . . . . . . . . Melee Attacks 9 | . . . . . . . . . . . . 1 . . . . . 4 . . . 4 Impact . | . . . . . . . . . . . . . . . . . . . . . . . Slashing 9 | . . . . . . . . . . . . 1 . . . . . 4 . . . 4 Piercing . | . . . . . . . . . . . . . . . . . . . . . . . Sneak Attacks 1 | . . . . . . . . . . . . . . . . . . 1 . . . . Combat Hostiles . | . . . . . . . . . . . . . . . . . . . . . . . Follow-up Attacks . | . . . . . . . . . . . . . . . . . . . . . . . Damage Inflicted 68555 | 199 1262 54 . 713 2591 1503 4808 2734 1197 1104 11575 9790 861 424 1500 3820 3179 6775 4595 575 4404 4892 Guns 51831 | 171 489 54 . . 2428 922 4667 2714 827 1092 7184 3464 . 424 895 3798 3179 6651 3562 505 4327 4478 Cannons 2862 | . . . . . . . . . . . 314 398 861 . . . . . 1033 . 77 179 Explosions 13533 | 28 755 . . 713 163 581 140 . 370 . 4053 5911 . . 605 . . . . 63 . 151 Melee 205 | . . . . . . . . . . . . . . . . . . 121 . . . 84 Ramming 124 | . 18 . . . . . 1 20 . 12 24 17 . . . 22 . 3 . 7 . . Kinetic 50305 | . 154 54 . . 2428 922 4667 2714 827 1092 6689 3244 . 424 895 3798 3179 6257 3651 505 4327 4478 Thermal 3973 | 28 . . . . . . . . . . 809 618 861 . . . . 394 944 63 77 179 Explosive 12671 | . 755 . . 713 163 581 140 . 370 . 4038 5911 . . . . . . . . . . Electromagnetic 1277 | 171 335 . . . . . . . . . 15 . . . 605 . . . . . . 151 Impact . | . . . . . . . . . . . . . . . . . . . . . . . Slashing 205 | . . . . . . . . . . . . . . . . . . 121 . . . 84 Piercing . | . . . . . . . . . . . . . . . . . . . . . . . Highest Corruption 25 | . . . . . . . 6 7 7 9 2 6 24 24 25 8 8 13 20 2 2 6 Average Corruption 6 | . . . . . . . 1 6 7 8 1 1 20 24 24 4 8 9 18 1 2 6 Corruption Purged 2 | . . . . . . . . . . . 2 . . . . . . . . . . . Corruption Blocked . | . . . . . . . . . . . . . . . . . . . . . . . Effects 436 | . . . . . . . 3 31 19 51 41 26 25 13 13 26 31 56 80 1 17 3 Message Errors 93 | . . . . . . . 1 5 3 15 9 8 4 3 4 5 9 12 13 . 2 . Matter Fused 100 | . . . . . . . 1 6 4 9 14 4 7 4 4 8 6 11 19 . 3 . Heat Flow Errors 41 | . . . . . . . . 3 4 5 3 3 2 1 . 4 1 6 7 . 1 1 Energy Discharges 54 | . . . . . . . . 6 3 6 2 3 4 1 2 1 3 7 13 . 2 1 Parts Rejected 3 | . . . . . . . . . . . . 1 1 . . . . . 1 . . . Parts Fused 5 | . . . . . . . . . 1 . . . . . . 1 . 3 . . . . Data Loss (minor) 61 | . . . . . . . 1 3 2 12 5 4 3 2 1 3 2 7 11 . 4 1 Data Loss (major) 20 | . . . . . . . . 1 . . 4 2 2 . . 1 2 4 3 . 1 . Misfires 18 | . . . . . . . . 3 . 3 2 1 1 . . 2 3 . 1 1 1 . Alerts 8 | . . . . . . . . 2 1 . . . . . . 1 1 . 3 . . . Misdirections 1 | . . . . . . . . . . . . . 1 . . . . . . . . . Weapon Failures 32 | . . . . . . . . 2 1 1 2 . . 2 2 . 4 6 9 . 3 . Overload Shots . | . . . . . . . . . . . . . . . . . . . . . . . Overflow Damage 350 | . 41 . . 41 5 35 6 . 11 . 97 78 . . 35 . . . 1 . . . Projectiles 10 | . . . . . . . . . . . 8 1 . . . . . . 1 . . . Explosions 340 | . 41 . . 41 5 35 6 . 11 . 89 77 . . 35 . . . . . . . Melee . | . . . . . . . . . . . . . . . . . . . . . . . Knockbacks 5 | . 1 . . . . . . . . . . 1 . . . 1 . . 2 . . . Impact 3 | . 1 . . . . . . . . . . 1 . . . 1 . . . . . . Kinetic 2 | . . . . . . . . . . . . . . . . . . . 2 . . . Secondary . | . . . . . . . . . . . . . . . . . . . . . . . Self-Inflicted Damage 778 | . . . . 4 29 16 . . 46 . 248 187 . . 103 . . . . 120 . 25 Shots 23 | . . . . 1 1 1 . . 2 . 9 4 . . 1 . . . . 2 . 2 Rammed 16 | . 2 . . . . . 1 2 . 2 3 1 . . . 3 . 1 . 1 . . Targets Rammed 19 | . 3 . . . . . 1 3 . 2 3 2 . . . 3 . 1 . 1 . . Kicked . | . . . . . . . . . . . . . . . . . . . . . . . Crushed 3 | . 1 . . . . . . 1 . . . 1 . . . . . . . . . . Highest Temperature 481 | 144 195 . . . 17 43 64 295 190 217 312 172 215 87 191 287 177 257 209 165 192 481 Average Temperature 64 | 56 64 . . . 10 10 16 34 89 105 91 47 71 27 66 75 91 86 58 70 55 125 Received Heat Transfer 4834 | . 264 18 . 30 180 153 450 576 198 27 816 514 . . 99 36 147 216 480 . 124 506 Siege Activations 47 | . . . . . . . . . . . . . . . . 8 5 8 5 1 11 9 Total Turns 459 | . . . . . . . . . . . . . . . . 68 66 96 91 5 78 55 Longest Duration 39 | . . . . . . . . . . . . . . . . 25 25 24 39 5 14 17 Martial Activations . | . . . . . . . . . . . . . . . . . . . . . . . Shielding Activations . | . . . . . . . . . . . . . . . . . . . . . . . Robots Disrupted 1 | . . . . . . . . . . . 1 . . . . . . . . . . . Combat Hostiles 1 | . . . . . . . . . . . 1 . . . . . . . . . . . Robots Corrupted 3 | . 2 . . . . . . . . . . . . . . . . . . . . 1 Combat Hostiles 3 | . 2 . . . . . . . . . . . . . . . . . . . . 1 Parts Fried 10 | 1 5 . . . . . . . . . . . . . 3 . . . . . . 1 Impact Corruptions . | . . . . . . . . . . . . . . . . . . . . . . . Robots Melted 2 | . . . . . . . . . . . . . 1 . . . . . 1 . . . Combat Hostiles 2 | . . . . . . . . . . . . . 1 . . . . . 1 . . . Parts Melted 12 | . . . . . . . . . . . 1 . 4 . . . . 4 . . . 3 Heat Transferred 7049 | 50 . . . . . . . . . . 1625 912 1920 . . . . 900 1118 50 74 400 Parts Sabotaged . | . . . . . . . . . . . . . . . . . . . . . . . Parts Stolen . | . . . . . . . . . . . . . . . . . . . . . . . Parts Stripped . | . . . . . . . . . . . . . . . . . . . . . . . Power Chain Reactions 1 | 1 . . . . . . . . . . . . . . . . . . . . . . Alert | -11 -10 -10 -10 -9 -8 -8 -8 -8 -8 -8 -6 -6 -6 -6 -6 -5 -5 -5 -5 -4 -4 -3 ------- Run | Yrd Mat Min Exi Min Mat Gar Mat Sto Gar Rec Fac Ext Cet Arc Hub Fac Gar Fac Gar Fac Gar Res Maximum Alert Level 5 | . . . . . 2 4 4 3 3 2 4 5 4 2 2 2 4 4 5 3 4 2 Low Security (%) 21 | 100 100 100 . 100 59 . . . . 84 41 . . . 82 . . . . . . . Level 1 9 | . . . . . 7 16 . . . 15 12 . . . 15 77 . . . . . 10 Level 2 26 | . . . . . 33 42 35 42 38 . 9 14 . 100 1 22 16 70 . 24 44 89 Level 3 29 | . . . . . . 35 60 57 61 . 18 59 75 . . . 53 20 33 75 50 . Level 4 10 | . . . . . . 5 4 . . . 17 12 25 . . . 30 8 56 . 5 . Level 5 1 | . . . . . . . . . . . . 13 . . . . . . 10 . . . High Security . | . . . . . . . . . . . . . . . . . . . . . . . Max Security . | . . . . . . . . . . . . . . . . . . . . . . . Peak Influence 2016 | 10 171 54 . 182 505 1109 1178 841 1036 466 1589 2016 1130 552 686 657 1231 1201 1707 937 1135 665 Initial 1127 | . . 54 . . 27 324 540 492 523 466 400 777 1127 406 165 331 440 646 835 896 479 638 Average 610 | 1 91 31 . 94 194 689 740 657 816 106 492 960 1070 498 198 362 910 691 1201 794 804 498 Influence Increases 17155 | 20 462 30 . 275 772 795 1308 823 543 479 2535 2399 278 188 641 876 811 1175 952 310 736 747 Destroy 0b10 Robot/C 9140 | . 180 20 . 160 460 480 800 480 360 160 1180 1340 160 80 100 300 640 680 560 100 420 480 Destroy 0b10 Robot/NC 850 | 20 50 . . 10 60 . 85 75 . 40 135 140 10 5 35 85 . 75 . 5 10 10 Destroy Leader 1510 | . 46 10 . 30 116 20 210 120 20 . 278 124 . . 38 94 50 150 60 22 40 82 Allied During Kill 798 | . . . . . . . . . . . . 560 65 52 83 38 . . . . . . Successful Hack 214 | . 5 . . . . 40 31 14 . 21 19 21 . . 14 24 . 6 14 5 . . Select Force Hacks 390 | . 60 . . . 30 . 30 30 . 240 . . . . . . . . . . . . Disable Machine 1155 | . 45 . . 30 15 15 45 45 . 15 285 30 15 45 225 105 30 60 . 75 45 30 Anti-Garrison Action 550 | . . . . . . 150 . . 100 . . . . . . . 50 . 150 . 100 . Destroy Structure 1533 | . 76 . . 45 46 75 32 14 48 3 178 154 13 6 146 200 26 144 123 88 106 10 Advance Influence 400 | . . . . . . . . . . . 400 . . . . . . . . . . . Lose Combat Pursuer 615 | . . . . . 45 15 75 45 15 . 60 30 15 . . 30 15 60 45 15 15 135 Influence Decreases 16572 | 20 322 166 4 204 344 185 1250 1185 312 1515 948 1972 1277 729 439 923 209 1213 438 1332 286 1299 Entered New Map 8011 | . . 86 4 . 44 175 569 675 282 570 . 810 887 609 309 345 189 585 358 811 206 497 Time Decay 6085 | 20 292 80 . 204 300 . 601 470 . 495 627 662 270 100 120 538 . 498 . 246 . 562 Search Patrol Dispatched 100 | . . . . . . . . . . . 100 . . . . . . . . . . . Lost Part 1211 | . 30 . . . . 10 80 40 30 . 221 200 60 . 10 20 20 90 80 . 80 240 Lost Ally 440 | . . . . . . . . . . . . 300 60 20 . 20 . 40 . . . . Purge Threat 725 | . . . . . . . . . . 450 . . . . . . . . . 275 . . Squads Dispatched 70 | . 2 1 . 1 4 . 11 5 . . 16 8 . . 1 5 . 10 . 2 . 4 Investigation 12 | . 2 1 . . 1 . 2 1 . . . 1 . . . . . 1 . . . 3 Extermination 13 | . . . . . . . . . . . 6 . . . . 3 . 3 . 1 . . Reinforcement 21 | . . . . 1 1 . 3 3 . . 3 3 . . 1 2 . 3 . . . 1 Assault 15 | . . . . . 1 . 4 1 . . 4 4 . . . . . . . 1 . . Garrison 9 | . . . . . 1 . 2 . . . 3 . . . . . . 3 . . . . Intercept . | . . . . . . . . . . . . . . . . . . . . . . . Searches Triggered 1 | . . . . . . . . . . . 1 . . . . . . . . . . . Construction Impeded 7 | . . . . 1 . . . 1 . . 2 2 . . . 1 . . . . . . Haulers Reinforced . | . . . . . . . . . . . . . . . . . . . . . . . Active Scanning Responses . | . . . . . . . . . . . . . . . . . . . . . . . Cargo Convoy Interrupts 2 | . . . . . . . . . . . 1 . . . . . . 1 . . . . Stealth | -11 -10 -10 -10 -9 -8 -8 -8 -8 -8 -8 -6 -6 -6 -6 -6 -5 -5 -5 -5 -4 -4 -3 --------- Run | Yrd Mat Min Exi Min Mat Gar Mat Sto Gar Rec Fac Ext Cet Arc Hub Fac Gar Fac Gar Fac Gar Res Distress Signals 38 | . 3 . . 1 3 . 5 4 . . 4 3 2 . 1 2 . 3 . . . 7 Communications Jammed . | . . . . . . . . . . . . . . . . . . . . . . . Distress Signals . | . . . . . . . . . . . . . . . . . . . . . . . Times Spotted 570 | . 16 1 . 7 27 20 53 35 18 3 71 74 10 4 7 24 33 47 29 11 18 62 Peak Tracking Total 15 | . 4 1 . 4 9 5 7 7 6 2 8 15 5 2 4 4 5 8 4 4 6 12 Tactical Retreats 30 | . . . . . 2 1 3 2 1 . 3 2 1 . . 2 1 2 3 1 1 5 Traps | -11 -10 -10 -10 -9 -8 -8 -8 -8 -8 -8 -6 -6 -6 -6 -6 -5 -5 -5 -5 -4 -4 -3 ------- Run | Yrd Mat Min Exi Min Mat Gar Mat Sto Gar Rec Fac Ext Cet Arc Hub Fac Gar Fac Gar Fac Gar Res Traps Triggered 29 | . . . . . . 3 5 2 . . 1 6 . . 2 . . 1 6 2 1 . Indirectly . | . . . . . . . . . . . . . . . . . . . . . . . Trap Hack Attempts . | . . . . . . . . . . . . . . . . . . . . . . . Triggered . | . . . . . . . . . . . . . . . . . . . . . . . Disarmed . | . . . . . . . . . . . . . . . . . . . . . . . Reprogrammed . | . . . . . . . . . . . . . . . . . . . . . . . Reused . | . . . . . . . . . . . . . . . . . . . . . . . Traps Extracted . | . . . . . . . . . . . . . . . . . . . . . . . Installed . | . . . . . . . . . . . . . . . . . . . . . . . Triggered . | . . . . . . . . . . . . . . . . . . . . . . . Machines | -11 -10 -10 -10 -9 -8 -8 -8 -8 -8 -8 -6 -6 -6 -6 -6 -5 -5 -5 -5 -4 -4 -3 ---------- Run | Yrd Mat Min Exi Min Mat Gar Mat Sto Gar Rec Fac Ext Cet Arc Hub Fac Gar Fac Gar Fac Gar Res Machines Disabled 90 | . 4 . . 2 1 1 3 3 1 1 19 6 1 3 15 7 3 4 2 5 7 2 Max in Single Turn 12 | . 1 . . 1 1 1 1 1 1 1 3 2 1 1 12 3 1 1 2 3 2 1 Garrison Access 1 | . . . . . . . 1 . . . . . . . . . . . . . . . Garrison Relay 3 | . . . . . . . . . 1 . . . . . . . 1 . . . 1 . Phase Generator 2 | . . . . . . . . . . . . . . . . . . . 1 . 1 . Network Hub 1 | . . . . . . . . . . . . . . . 1 . . . . . . . Machines Repaired . | . . . . . . . . . . . . . . . . . . . . . . . Machines Dismantled . | . . . . . . . . . . . . . . . . . . . . . . . Machines Sabotaged . | . . . . . . . . . . . . . . . . . . . . . . . Overloaded Fab Kills . | . . . . . . . . . . . . . . . . . . . . . . . Hacking | -11 -10 -10 -10 -9 -8 -8 -8 -8 -8 -8 -6 -6 -6 -6 -6 -5 -5 -5 -5 -4 -4 -3 --------- Run | Yrd Mat Min Exi Min Mat Gar Mat Sto Gar Rec Fac Ext Cet Arc Hub Fac Gar Fac Gar Fac Gar Res Machines Accessed 74 | . 5 1 2 . 3 3 7 6 1 14 6 6 . . 3 4 1 5 2 3 . 2 Terminals 36 | . 3 . . . 1 3 5 4 1 6 1 6 . . 3 . 1 . 2 . . . Fabricators 6 | . . . . . . . . . . . 2 . . . . . . 1 . 2 . 1 Repair Stations 1 | . . . . . . . . . . . . . . . . . . 1 . . . . Recycling Units 19 | . 2 . . . 1 . 1 1 . 8 3 . . . . 2 . 1 . . . . Scanalyzers 4 | . . . . . . . 1 . . . . . . . . 1 . 1 . . . 1 Garrison Access 5 | . . . . . 1 . . 1 . . . . . . . 1 . 1 . 1 . . Total Hacks 158 | . 9 1 2 . 5 8 15 12 3 40 10 9 . . 8 9 3 11 2 5 . 6 Successful 86 | . 6 1 2 . 2 3 8 6 1 20 8 4 . . 4 6 . 7 1 5 . 2 Failed 70 | . 3 . . . 3 5 6 6 2 20 2 5 . . 4 3 3 4 1 . . 3 Catastrophic 19 | . . . . . 1 . 3 2 1 6 . 1 . . 2 . . 1 1 . . 1 Database Lockouts 2 | . . . . . . . 1 . . . . . . . . . . . . . . 1 Manual 41 | . 2 . 1 . 2 2 6 1 . 14 4 4 1 . 2 . . 1 . 1 . . Terminals 71 | . 5 . . . 2 8 11 7 3 12 1 9 . . 8 . 3 . 2 . . . Fabricators 12 | . . . . . . . . . . . 5 . . . . . . 2 . 4 . 1 Repair Stations 4 | . . . . . . . . . . . . . . . . . . 4 . . . . Recycling Units 48 | . 4 . . . 2 . 1 4 . 28 4 . . . . 4 . 1 . . . . Scanalyzers 15 | . . . . . . . 3 . . . . . . . . 4 . 3 . . . 5 Garrison Access 5 | . . . . . 1 . . 1 . . . . . . . 1 . 1 . 1 . . Terminal Hacks 29 | . 3 1 2 . . 2 3 4 1 4 . 4 . . 4 . . . 1 . . . Record 1 | . . . 1 . . . . . . . . . . . . . . . . . . . Robot Analysis 1 | . 1 . . . . . . . . . . . . . . . . . . . . . Prototype ID Bank 3 | . 1 . . . . . 1 . . 1 . . . . . . . . . . . . Open Door 9 | . . 1 . . . . . 4 . . . 4 . . . . . . . . . . Level Access Points 1 | . . . . . . . . . . . . . . . 1 . . . . . . . Branch Access Points 2 | . . . . . . . 1 . . . . . . . 1 . . . . . . . Emergency Access Points 2 | . 1 . . . . . . . 1 . . . . . . . . . . . . . Unreport Threat 3 | . . . . . . . . . . 3 . . . . . . . . . . . . Locate Traps 2 | . . . . . . . 1 . . . . . . . 1 . . . . . . . Zone Layout 1 | . . . . . . . . . . . . . . . 1 . . . . . . . Garrison Registry 2 | . . . . . . 1 . . . . . . . . . . . . 1 . . . Patrol Navigation 1 | . . . . . . 1 . . . . . . . . . . . . . . . . Proto ID Catalog 1 | . . . 1 . . . . . . . . . . . . . . . . . . . Fabricator Hacks 7 | . . . . . . . . . . . 2 . . . . . . 1 . 3 . 1 Network Status 4 | . . . . . . . . . . . 2 . . . . . . . . 1 . 1 Build 3 | . . . . . . . . . . . . . . . . . . 1 . 2 . . Repair Station Hacks 2 | . . . . . . . . . . . . . . . . . . 2 . . . . Scan Component 1 | . . . . . . . . . . . . . . . . . . 1 . . . . Repair 1 | . . . . . . . . . . . . . . . . . . 1 . . . . Recycling Unit Hacks 10 | . 1 . . . . . . . . 2 3 . . . . 3 . 1 . . . . Report Inventory 1 | . . . . . . . . . . . 1 . . . . . . . . . . . Retrieve Matter 1 | . . . . . . . . . . . 1 . . . . . . . . . . . Retrieve Components 8 | . 1 . . . . . . . . 2 1 . . . . 3 . 1 . . . . Scanalyzer 6 | . . . . . . . 2 . . . . . . . . 2 . 1 . . . 1 Retrieve Study 6 | . . . . . . . 2 . . . . . . . . 2 . 1 . . . 1 Garrison Access Hacks 5 | . . . . . 1 . . 1 . . . . . . . 1 . 1 . 1 . . Unlock Access 5 | . . . . . 1 . . 1 . . . . . . . 1 . 1 . 1 . . Unauthorized Hacks 27 | . 2 . . . 1 1 3 1 . 14 3 . . . . . . 1 . 1 . . Terminals 10 | . . . . . . 1 2 . . 6 1 . . . . . . . . . . . Botnet 3 | . . . . . . 1 1 . . 1 . . . . . . . . . . . . Skim 7 | . . . . . . . 1 . . 5 1 . . . . . . . . . . . Fabricators 3 | . . . . . . . . . . . 2 . . . . . . . . 1 . . Report 1 | . . . . . . . . . . . 1 . . . . . . . . . . . Haulers 2 | . . . . . . . . . . . 1 . . . . . . . . 1 . . Repair Stations 1 | . . . . . . . . . . . . . . . . . . 1 . . . . Patch 1 | . . . . . . . . . . . . . . . . . . 1 . . . . Recycling Units 13 | . 2 . . . 1 . 1 1 . 8 . . . . . . . . . . . . Tunnel 13 | . 2 . . . 1 . 1 1 . 8 . . . . . . . . . . . . Scanalyzers . | . . . . . . . . . . . . . . . . . . . . . . . Garrison Access . | . . . . . . . . . . . . . . . . . . . . . . . Data Cores Recovered 1 | . . . . . . . 1 . . . . . . . . . . . . . . . Used . | . . . . . . . . . . . . . . . . . . . . . . . Hacking Detections 42 | . 2 . . . 3 3 3 4 1 11 2 2 . . 2 2 1 2 2 1 . 1 Full Trace Events 2 | . . . . . . 1 . . 1 . . . . . . . . . . . . . Feedback Events . | . . . . . . . . . . . . . . . . . . . . . . . Feedback Blocked . | . . . . . . . . . . . . . . . . . . . . . . . Robot Schematics Acquired . | . . . . . . . . . . . . . . . . . . . . . . . Robots Built 4 | . . . . . . . . . . . . . . . . . . 4 . . . . Authchips . | . . . . . . . . . . . . . . . . . . . . . . . Time 81 | . . . . . . . . . . . . . . . . . . 81 . . . . Total Robot Build Rating 4 | . . . . . . . . . . . . . . . . . . 4 . . . . Part Schematics Acquired . | . . . . . . . . . . . . . . . . . . . . . . . Parts Built 2 | . . . . . . . . . . . . . . . . . . . . 2 . . Authchips . | . . . . . . . . . . . . . . . . . . . . . . . Time 234 | . . . . . . . . . . . . . . . . . . . . 234 . . Total Part Build Rating 14 | . . . . . . . . . . . . . . . . . . . . 14 . . Part Studies Acquired 6 | . . . . . . . 2 . . . . . . . . 2 . 1 . . . 1 Parts Repaired 1 | . . . . . . . . . . . . . . . . . . 1 . . . . Time 99 | . . . . . . . . . . . . . . . . . . 99 . . . . Parts Recycled . | . . . . . . . . . . . . . . . . . . . . . . . Recycled Matter . | . . . . . . . . . . . . . . . . . . . . . . . Retrieved Matter 222 | . . . . . . . . . . . 222 . . . . . . . . . . . Retrieved Components 45 | . 9 . . . . . . . . 13 3 . . . . 10 . 10 . . . . Parts Scanalyzed . | . . . . . . . . . . . . . . . . . . . . . . . Part Schematics Acquired . | . . . . . . . . . . . . . . . . . . . . . . . Parts Damaged . | . . . . . . . . . . . . . . . . . . . . . . . Bothacking | -11 -10 -10 -10 -9 -8 -8 -8 -8 -8 -8 -6 -6 -6 -6 -6 -5 -5 -5 -5 -4 -4 -3 ------------ Run | Yrd Mat Min Exi Min Mat Gar Mat Sto Gar Rec Fac Ext Cet Arc Hub Fac Gar Fac Gar Fac Gar Res Used RIF Installer 4 | . . . . . . 1 . . 1 . . . . . . . 1 . 1 . . . Command Fork 1 | . . . . . . . . . . . . . . . . . 1 . . . . . Robot Detection 1 | . . . . . . . . . 1 . . . . . . . . . . . . . Alert ID Control 1 | . . . . . . . . . . . . . . . . . . . 1 . . . Robots Hacked 1 | . . . . . . . . . . . . . . . . . . . . 1 . . Non-combat 1 | . . . . . . . . . . . . . . . . . . . . 1 . . Combat . | . . . . . . . . . . . . . . . . . . . . . . . Robot Hacks Applied 5 | . . . . . . . . . . . . . . . . . . . . 5 . . generate_anomaly 1 | . . . . . . . . . . . . . . . . . . . . 1 . . purge_threat 2 | . . . . . . . . . . . . . . . . . . . . 2 . . locate_traps 1 | . . . . . . . . . . . . . . . . . . . . 1 . . block_reporting 1 | . . . . . . . . . . . . . . . . . . . . 1 . . Relay Couplers Released 20 | . . . . . . . 3 . 3 . 2 . . . . 4 5 . . . 3 . Machine Destruction 16 | . . . . . . . 3 . 3 . 2 . . . . . 5 . . . 3 . Programmers 4 | . . . . . . . . . . . . . . . . 4 . . . . . . Attached 1 | . . . . . . . . . . . . . . . . . . . . 1 . . Fabnet Peak Effective % . | . . . . . . . . . . . . . . . . . . . . . . . Robots Rewired 17 | . . . . . . . . . . . . 17 . . . . . . . . . . Allies Hacked . | . . . . . . . . . . . . . . . . . . . . . . . Hacks Repelled . | . . . . . . . . . . . . . . . . . . . . . . . Allies | -11 -10 -10 -10 -9 -8 -8 -8 -8 -8 -8 -6 -6 -6 -6 -6 -5 -5 -5 -5 -4 -4 -3 -------- Run | Yrd Mat Min Exi Min Mat Gar Mat Sto Gar Rec Fac Ext Cet Arc Hub Fac Gar Fac Gar Fac Gar Res Total Allies 32 | . . . . . . . . . . . . 23 5 . . . . 4 . . . . Largest Group 11 | . . . . . . . . . . . . 11 5 3 2 2 . 4 . . . . Highest-Rated Group 537 | . . . . . . . . . . . . 431 537 288 192 192 . 24 . . . . Highest-Rated Ally 159 | . . . . . . . . . . . . 159 159 96 96 96 . 6 . . . . Total Orders 1 | . . . . . . . . . . . . . . . . . . 1 . . . . ROAM 1 | . . . . . . . . . . . . . . . . . . 1 . . . . Ally Attacks 242 | . . . . . . . . . . . . 183 28 13 11 7 . . . . . . Total Damage 6204 | . . . . . . . . . . . . 3743 1244 561 425 231 . . . . . . Kills 40 | . . . . . . . . . . . . 28 5 2 2 3 . . . . . . Allies Corrupted . | . . . . . . . . . . . . . . . . . . . . . . . Allies Melted . | . . . . . . . . . . . . . . . . . . . . . . . Intel | -11 -10 -10 -10 -9 -8 -8 -8 -8 -8 -8 -6 -6 -6 -6 -6 -5 -5 -5 -5 -4 -4 -3 ------- Run | Yrd Mat Min Exi Min Mat Gar Mat Sto Gar Rec Fac Ext Cet Arc Hub Fac Gar Fac Gar Fac Gar Res Active Infowar (turns) 5836 | . . . . . . . . . . . 2657 1965 . . 227 747 . . 118 122 . . Optics 369 | . . . . . . . . . . . . . . . . 369 . . . . . . Sensors 5836 | . . . . . . . . . . . 2657 1965 . . 227 747 . . 118 122 . . Robot Analysis Total 1 | . 1 . . . . . . . . . . . . . . . . . . . . . Derelict Logs Recovered 3 | . . 2 . 1 . . . . . . . . . . . . . . . . . . Drone Launches . | . . . . . . . . . . . . . . . . . . . . . . . Drone Recoveries . | . . . . . . . . . . . . . . . . . . . . . . . Exploration | -11 -10 -10 -10 -9 -8 -8 -8 -8 -8 -8 -6 -6 -6 -6 -6 -5 -5 -5 -5 -4 -4 -3 ------------- Run | Yrd Mat Min Exi Min Mat Gar Mat Sto Gar Rec Fac Ext Cet Arc Hub Fac Gar Fac Gar Fac Gar Res Turns Passed 26130 | 198 771 161 430 453 1018 1468 1928 1193 697 1741 3929 2507 592 213 253 1520 847 1335 1534 539 1127 1676 Spaces Moved 8763 | 90 278 89 264 265 321 638 615 349 246 518 1157 735 181 63 85 517 280 370 498 166 342 696 Core 157 | 4 . . . . . . . . . . . . . . . . . . . . . 153 Treads 7953 | 86 278 89 264 265 321 58 542 349 246 518 1157 735 181 63 85 517 280 370 498 166 342 543 Legs . | . . . . . . . . . . . . . . . . . . . . . . . Wheels 653 | . . . . . . 580 73 . . . . . . . . . . . . . . . Hover . | . . . . . . . . . . . . . . . . . . . . . . . Flight . | . . . . . . . . . . . . . . . . . . . . . . . Fastest Speed 50 | 50 160 160 160 160 160 155 160 240 240 240 240 240 240 240 240 240 240 240 240 240 240 50 Average Speed 238 | 155 222 160 160 160 238 190 254 270 240 240 289 275 246 240 240 240 240 240 240 240 240 203 Slowest Speed 560 | 160 320 160 160 160 240 560 400 280 240 240 480 400 280 240 240 240 240 240 320 240 240 320 Overloaded Moves . | . . . . . . . . . . . . . . . . . . . . . . . Propulsion Burnouts . | . . . . . . . . . . . . . . . . . . . . . . . Robots Hopped . | . . . . . . . . . . . . . . . . . . . . . . . Potential Cave-ins . | . . . . . . . . . . . . . . . . . . . . . . . Cave-ins Triggered . | . . . . . . . . . . . . . . . . . . . . . . . Exploration Rate (%) 47 | 4 62 35 61 74 31 69 55 62 48 93 36 85 63 74 17 17 44 11 74 7 45 17 Regions Visited 22 Branch Regions 9 Pre-discovered Areas 17 | . 2 . 1 1 1 . 1 1 . 10 . . . . . . . . . . . . Known Exits Taken 9 | . . . . . 1 . 1 1 . . 1 1 . . 1 1 . 1 . 1 . . Unknown Exits Taken 8 | 1 1 1 1 1 . . . . . 1 . . 1 1 . . . . . . . . Scrap Searched 1 | . . . . 1 . . . . . . . . . . . . . . . . . . Spaces Dug 32 | . . . . . 2 1 . . . . . 1 . . 12 4 . 5 7 . . . Terrain Destroyed 1463 | 3 99 . . 64 53 50 34 3 16 4 206 216 . 14 183 146 15 106 106 40 93 12 Melee 4 | . . . . . . . . . . . . 1 . . . . . 3 . . . . Projectile 303 | . . . . . 2 5 6 2 2 3 4 5 . 14 22 62 12 100 25 7 20 12 AOE 1142 | 3 99 . . 64 49 45 27 . 14 . 202 210 . . 161 83 . . 81 33 71 . Terrain Rammed . | . . . . . . . . . . . . . . . . . . . . . . . Walls Destroyed . | . . . . . . . . . . . . . . . . . . . . . . . Machines Disabled . | . . . . . . . . . . . . . . . . . . . . . . . Actions | -11 -10 -10 -10 -9 -8 -8 -8 -8 -8 -8 -6 -6 -6 -6 -6 -5 -5 -5 -5 -4 -4 -3 --------- Run | Yrd Mat Min Exi Min Mat Gar Mat Sto Gar Rec Fac Ext Cet Arc Hub Fac Gar Fac Gar Fac Gar Res Total 12043 | 121 360 103 274 281 446 821 786 458 298 962 1458 1038 296 114 110 701 382 660 670 280 554 870 Wait 1523 | 7 17 5 1 1 37 77 43 28 5 415 70 41 24 45 13 114 65 180 65 73 126 71 Move 8745 | 89 277 88 263 264 321 637 614 349 245 517 1156 734 180 62 84 516 279 370 497 166 341 696 Hop . | . . . . . . . . . . . . . . . . . . . . . . . Pick Up 166 | 6 5 3 5 2 8 19 8 2 2 2 25 12 9 1 . 12 4 13 3 7 8 10 Fast Attach 111 | 6 2 . . . 5 1 5 3 4 . 9 12 11 1 . 4 . 8 10 6 12 12 Attach 101 | . 3 . . . . . 5 4 3 1 27 14 14 . . 3 1 6 4 3 4 9 Detach 40 | . . . . . 1 . . 1 1 . 9 6 9 . . . . 4 . 2 2 5 Swap 146 | 1 1 2 1 1 10 27 12 9 4 2 26 7 5 . 1 6 2 9 5 3 3 9 Drop 139 | . 1 2 4 . 10 11 6 5 4 2 17 3 10 1 . 11 4 13 3 2 12 18 Fire 885 | 12 51 3 . 13 54 37 92 54 30 21 116 77 34 4 8 32 27 52 71 17 44 36 Melee 9 | . . . . . . . . . . . . 1 . . . . . 4 . . . 4 Ram . | . . . . . . . . . . . . . . . . . . . . . . . Kick . | . . . . . . . . . . . . . . . . . . . . . . . Crush 19 | . 3 . . . . . 1 3 . 2 3 2 . . . 3 . 1 . 1 . . Escape Stasis 38 | . . . . . . 12 . . . . . 8 . . 4 . . . 12 . 2 . Rewire 121 | . . . . . . . . . . . . 121 . . . . . . . . . . Trap . | . . . . . . . . . . . . . . . . . . . . . . . Miscellaneous . | . . . . . . . . . . . . . . . . . . . . . . . Route ------- -11/Scrapyard -10/Materials (discovered 2 exits: [*Mat] / *Min) -10/Mines (discovered 2 exits: [*Mat] / *Exi) -10/Exiles -9/Mines (discovered 2 exits: *Mat x2) -8/Materials (discovered 2 exits: *Sto / Gar) -8/Garrison (discovered 3 exits: *Mat x3) -8/Materials (discovered 2 exits: [*Fac] / *Sto) -8/Storage (discovered 2 exits: Rec / Gar) -8/Garrison -8/Recycling -6/Factory (discovered 6 exits: *Fac x4 / *Low / *Ext) -6/Extension (discovered 3 exits: *Fac x2 / *Cet) -6/Cetus (discovered 2 exits: *Fac / [*Arc]) -6/Archives -6/Hub_04(d) (discovered 4 exits: *Fac x4) -5/Factory (discovered 2 exits: [*Upp] / Gar) -5/Garrison (discovered 2 exits: *Fac x2) -5/Factory -5/Garrison (discovered 3 exits: *Fac x3) -4/Factory -4/Garrison -3/Research (discovered 1 exit: *Res) History --------- Turn | Location | Event 12 | -11/Scrapyard | Discovered new exit (range 14) 199 | -11/Scrapyard | Entered Materials 309 | -10/Materials | Build established: Mutant 441 | -10/Materials | Lost 3 parts (1p2w) 715 | -10/Materials | Discovered new exit (range 13) 832 | -10/Materials | Discovered new exit (range 4) 970 | -10/Materials | Entered Mines 975 | -10/Mines | Met a Derelict shopkeep closing up shop 1016 | -10/Mines | Learned Materials stockpile data 1047 | -10/Mines | Discovered new exit (range 8) 1125 | -10/Mines | Deemed a non-threat by the Exiles lab entrance 1125 | -10/Mines | Discovered new exit (range 5) 1131 | -10/Mines | Entered Exiles 1170 | -10/Exiles | Met 8R-AWN 1197 | -10/Exiles | Met EX-HEX 1247 | -10/Exiles | Met EX-BIN 1266 | -10/Exiles | Aligned with FarCom system 1267 | -10/Exiles | Given EX-Vault access code 1306 | -10/Exiles | Opened EX-Vault 1315 | -10/Exiles | Found Gui. Plasma Cannon 1324 | -10/Exiles | Found Longsword +1 1333 | -10/Exiles | Found Skeleton Box 1368 | -10/Exiles | Warned to stay clear of 0b10 Research branches 1411 | -10/Exiles | Met EX-DEC 1419 | -10/Exiles | Learned location of Zion (-6) 1542 | -10/Exiles | Discovered new exit (range 14) 1561 | -10/Exiles | Stole three prototypes: Skeleton Box, Gui. Plasma Cannon, Longsword +1 1561 | -10/Exiles | Entered Mines 1590 | -9/Mines | Found a hidden stash of uninstalled traps 1600 | -9/Mines | Discovered new exit (range 10) 1766 | -9/Mines | Received a Rocket Launcher from a helpful Derelict 1995 | -9/Mines | Discovered new exit (range 9) 2014 | -9/Mines | Entered Materials 2014 | -8/Materials | Evolved 4 slots: Utility x2, Weapon x2 2163 | -8/Materials | Discovered new exit (range 13) 2332 | -8/Materials | Build established: Skirmisher 2734 | -8/Materials | Destroyed 9 combat bots 2814 | -8/Materials | First assault squad dispatched 2944 | -8/Materials | Garrison activated, responded to threat 2948 | -8/Materials | Build established: Scavenger-Tank 3032 | -8/Materials | Identified exit to Garrison 3032 | -8/Materials | Entered Garrison 3264 | -8/Garrison | Triggered checkpoint 3467 | -8/Garrison | Build established: Skirmisher 3518 | -8/Garrison | Triggered checkpoint 3707 | -8/Garrison | Discovered new exit (range 14) 3813 | -8/Garrison | Triggered checkpoint 3900 | -8/Garrison | Triggered checkpoint 3924 | -8/Garrison | Destroyed 8 combat bots 4184 | -8/Garrison | Triggered checkpoint 4214 | -8/Garrison | Discovered new exit (range 73) 4214 | -8/Garrison | Discovered new exit (range 87) 4214 | -8/Garrison | Discovered new exit (range 35) 4392 | -8/Garrison | Triggered checkpoint 4462 | -8/Garrison | Installed Relay Interface Framework 4500 | -8/Garrison | Entered Materials 4601 | -8/Materials | Central database locked down 4968 | -8/Materials | Build established: Scavenger-Skirmisher 5300 | -8/Materials | First assault squad dispatched 5306 | -8/Materials | Discovered new exit (range 16) 5368 | -8/Materials | Identified exit to Storage 6092 | -8/Materials | Garrison activated, responded to threat 6131 | -8/Materials | Lost 3 parts (1n2u) 6428 | -8/Materials | Entered Storage 6429 | -8/Storage | Identified exit to Recycling 6430 | -8/Storage | FarCom data flow suspended 6728 | -8/Storage | Build established: Scavenger-Tank 7228 | -8/Storage | First assault squad dispatched 7274 | -8/Storage | Found Prototype Protection 7274 | -8/Storage | Identified Lgt. Regenerative Plating 7391 | -8/Storage | Core integrity fell below 50% 7621 | -8/Storage | Identified exit to Garrison 7621 | -8/Storage | Entered Garrison 7723 | -8/Garrison | Build established: Scavenger-Gunner 8180 | -8/Garrison | Expanded RIF knowledge: Robot Detection 8208 | -8/Garrison | Discovered exit to Recycling (range 3) 8318 | -8/Garrison | Entered Recycling 8319 | -8/Recycling | Met a Zionite searching for Scraptown 8870 | -8/Recycling | Discovered new exit (range 16) 8954 | -8/Recycling | Scanned before Scraplab entrance 9766 | -8/Recycling | Learned Storage emergency access door positions 10033 | -8/Recycling | Learned Factory trap positions 10059 | -8/Recycling | Entered Factory 10059 | -6/Factory | Evolved 4 slots: Weapon x4 10060 | -6/Factory | Identified exit to Factory 10061 | -6/Factory | Loaded intel: 82 trap records 10379 | -6/Factory | Discovered new exit (range 5) 10409 | -6/Factory | Search patrols dispatched 10587 | -6/Factory | Identified exit to Lower Caves 10591 | -6/Factory | Build established: Executioner 12106 | -6/Factory | Garrison activated, responded to threat 12143 | -6/Factory | Cargo convoy interrupted 12181 | -6/Factory | Destroyed 7 combat bots 12189 | -6/Factory | Lost 9 parts (1p2u6w) 12305 | -6/Factory | Lost 5 parts (1p1n3w) 12504 | -6/Factory | Build established: Scavenger-Executioner 12509 | -6/Factory | First assault squad dispatched 13335 | -6/Factory | Lost 3 parts (1p2w) 13871 | -6/Factory | Lost 3 parts (1n2w) 13954 | -6/Factory | Discovered new exit (range 12) 13983 | -6/Factory | Identified exit to Extension 13988 | -6/Factory | Entered Extension 14607 | -6/Extension | Rescued a captive Derelict 14688 | -6/Extension | First assault squad dispatched 14785 | -6/Extension | Rescued a captive Derelict 14787 | -6/Extension | Rescued a captive Derelict 14949 | -6/Extension | Lost 3 allies 15398 | -6/Extension | Spotted B-75 Beast 15420 | -6/Extension | Destroyed B-75 Beast 15436 | -6/Extension | Spotted B-75 Beast 15446 | -6/Extension | Lost 3 parts (3w) 15473 | -6/Extension | Lost 3 allies 15473 | -6/Extension | Destroyed B-75 Beast 15485 | -6/Extension | Lost 3 parts (1n1u1w) 15538 | -6/Extension | Disrupted transfer network 15574 | -6/Extension | Core integrity fell below 50% 15604 | -6/Extension | Lost 5 parts (1n1u3w) 15793 | -6/Extension | Rescued a captive Derelict 15794 | -6/Extension | Rescued a captive Derelict 15944 | -6/Extension | Rescued A7 16370 | -6/Extension | Build established: Commander-Executioner 16432 | -6/Extension | Discovered exit to Factory (range 10) 16435 | -6/Extension | Discovered new exit (range 6) 16454 | -6/Extension | Disrupted transfer network 16488 | -6/Extension | Lost 8 allies 16491 | -6/Extension | Identified exit to Cetus 16495 | -6/Extension | Entered Cetus 16495 | -6/Cetus | Accompanied by 1 ally (A7) 16497 | -6/Cetus | Destroyed 10 combat bots 16500 | -6/Cetus | Acquired a Cetus Manufacturing Module code from A7 16506 | -6/Cetus | Lost 6 parts (1n2u3w) 16546 | -6/Cetus | Spotted Cetus Guard 16547 | -6/Cetus | Spotted Cetus Guard 16552 | -6/Cetus | Spotted Cetus Guard 16557 | -6/Cetus | Allies destroyed Cetus Guard 16559 | -6/Cetus | Spotted Cetus Guard 16560 | -6/Cetus | Destroyed Cetus Guard 16569 | -6/Cetus | Allies destroyed Cetus Guard 16577 | -6/Cetus | Destroyed Cetus Guard 16604 | -6/Cetus | Lost 5 parts (1n4w) 16616 | -6/Cetus | System corruption reached 10% 16735 | -6/Cetus | Started Cetus Manufacturing Module 16757 | -6/Cetus | Escorted A7 to Cetus Mainframe 16760 | -6/Cetus | Manufactured an Enhanced Grunt 16783 | -6/Cetus | Discovered new exit (range 16) 16785 | -6/Cetus | Manufactured an Enhanced Grunt 16810 | -6/Cetus | Manufactured an Enhanced Grunt 16834 | -6/Cetus | Spotted Cetus Guard 16834 | -6/Cetus | Spotted Cetus Guard 16835 | -6/Cetus | Manufactured an Enhanced Grunt 16838 | -6/Cetus | Spotted Cetus Guard 16838 | -6/Cetus | Allies destroyed Cetus Guard 16845 | -6/Cetus | Destroyed Cetus Guard 16860 | -6/Cetus | Manufactured an Enhanced Grunt 16869 | -6/Cetus | Destroyed Cetus Guard 16876 | -6/Cetus | Destroyed Cetus Guard 16880 | -6/Cetus | Lost 3 allies 16885 | -6/Cetus | Extracted ID and sensor layout for unrecognized location from A7's data core 16920 | -6/Cetus | Found Prototype Device 16920 | -6/Cetus | Identified Exp. Thermal Shield 16931 | -6/Cetus | Discovered exit to Factory (range 16) 16945 | -6/Cetus | Met Revision 17 17087 | -6/Cetus | Entered Archives 17087 | -6/Archives | Accompanied by 3 allies 17224 | -6/Archives | Discovered new exit (range 15) 17257 | -6/Archives | Build established: Scavenger-Executioner 17300 | -6/Archives | Entered Hub_04(d) 17300 | -6/Hub_04(d) | Accompanied by 2 allies 17549 | -6/Hub_04(d) | Network Hub disabled 17553 | -6/Hub_04(d) | Entered Factory 17553 | -5/Factory | Accompanied by 2 allies 17553 | -5/Factory | Evolved 2 slots: Weapon x2 17748 | -5/Factory | Discovered new exit (range 11) 18902 | -5/Factory | Identified exit to Garrison 19073 | -5/Factory | Entered Garrison 19182 | -5/Garrison | Spotted B-75 Beast 19196 | -5/Garrison | Destroyed B-75 Beast 19200 | -5/Garrison | Triggered checkpoint 19230 | -5/Garrison | Destroyed 8 combat bots 19389 | -5/Garrison | Discovered new exit (range 15) 19405 | -5/Garrison | Triggered checkpoint 19470 | -5/Garrison | Garrison Relay disabled 19597 | -5/Garrison | Triggered checkpoint 19649 | -5/Garrison | Triggered checkpoint 19765 | -5/Garrison | Expanded RIF knowledge: Command Fork 19818 | -5/Garrison | Triggered checkpoint 19903 | -5/Garrison | Discovered new exit (range 8) 19920 | -5/Garrison | Entered Factory 20451 | -5/Factory | Fabricated K-01 Serf (x4) 20585 | -5/Factory | Repaired Adv. KE Penetrator 20847 | -5/Factory | Cargo convoy interrupted 20862 | -5/Factory | System corruption reached 10% 20889 | -5/Factory | Destroyed 7 combat bots 20895 | -5/Factory | Lost 3 parts (1u2w) 20897 | -5/Factory | Garrison activated, responded to threat 20925 | -5/Factory | Found PL-3XN's Ring of Power 21002 | -5/Factory | Destroyed 7 combat bots 21004 | -5/Factory | Lost 3 parts (1u2w) 21008 | -5/Factory | Found Prototype Device 21008 | -5/Factory | Identified Exp. EM Shield 21055 | -5/Factory | Found Prototype Launcher 21055 | -5/Factory | Identified Enh. Gamma Bomb Array 21074 | -5/Factory | Found Enh. Gamma Bomb Array 21082 | -5/Factory | Found Enh. Gamma Bomb Array 21096 | -5/Factory | Garrison activated, responded to threat 21255 | -5/Factory | Identified exit to Garrison 21255 | -5/Factory | Entered Garrison 21455 | -5/Garrison | Expanded RIF knowledge: Alert ID Control 21497 | -5/Garrison | Triggered checkpoint 21771 | -5/Garrison | Phase Generator disabled 21913 | -5/Garrison | Spotted B-75 Beast 21939 | -5/Garrison | Destroyed B-75 Beast 22007 | -5/Garrison | Triggered checkpoint 22080 | -5/Garrison | Triggered checkpoint 22119 | -5/Garrison | Lost 4 parts (1n3w) 22199 | -5/Garrison | Discovered new exit (range 9) 22252 | -5/Garrison | Discovered new exit (range 70) 22252 | -5/Garrison | Discovered new exit (range 45) 22252 | -5/Garrison | Discovered new exit (range 14) 22349 | -5/Garrison | Triggered checkpoint 22789 | -5/Garrison | Entered Factory 22789 | -4/Factory | Evolved 2 slots: Weapon x2 23039 | -4/Factory | First assault squad dispatched 23194 | -4/Factory | Fabricated Hvy. Gauss Cannon? 23268 | -4/Factory | Identified exit to Garrison 23328 | -4/Factory | Entered Garrison 23442 | -4/Garrison | Triggered checkpoint 23750 | -4/Garrison | Spotted B-86 Titan 23791 | -4/Garrison | Destroyed B-86 Titan 23791 | -4/Garrison | Triggered checkpoint 23820 | -4/Garrison | Lost 4 parts (1p3w) 24051 | -4/Garrison | Phase Generator disabled 24066 | -4/Garrison | Discovered new exit (range 15) 24136 | -4/Garrison | Triggered checkpoint 24277 | -4/Garrison | H-XX Assembler disabled 24396 | -4/Garrison | Garrison Relay disabled 24455 | -4/Garrison | Entered Research 24455 | -3/Research | Evolved 2 slots: Weapon x2 24655 | -3/Research | Revision forces began assault on 0b10 24681 | -3/Research | Met up with Revision 17++ 24775 | -3/Research | Central database locked down 25155 | -3/Research | Research terminal network offline 25630 | -3/Research | Spotted Striker 25630 | -3/Research | Spotted Executioner 25632 | -3/Research | Destroyed Executioner 25673 | -3/Research | Found Prototype Processor 25673 | -3/Research | Identified Exp. Targeting Computer 25677 | -3/Research | Found Prototype Processor 25677 | -3/Research | Identified Exp. Core Analyzer 25695 | -3/Research | Spotted Striker 25703 | -3/Research | Spotted Striker 25704 | -3/Research | Spotted Striker 25711 | -3/Research | Destroyed Striker 25738 | -3/Research | Lost 3 allies 25780 | -3/Research | Discovered new exit (range 11) 25807 | -3/Research | Spotted Striker 25807 | -3/Research | Spotted Striker 25813 | -3/Research | Destroyed Striker 25813 | -3/Research | Destroyed Striker 25841 | -3/Research | Identified exit to Research 25972 | -3/Research | Found Exp. Core Analyzer 25983 | -3/Research | Spotted Striker 25993 | -3/Research | Destroyed Striker 25998 | -3/Research | Destroyed Revision 17++ 26004 | -3/Research | Spotted Executioner 26014 | -3/Research | Spotted Striker 26014 | -3/Research | Spotted Striker 26019 | -3/Research | Spotted Striker 26028 | -3/Research | Destroyed Striker 26047 | -3/Research | Core integrity fell below 50% 26057 | -3/Research | Core integrity fell below 20% 26082 | -3/Research | Lost 22 parts (2p3n17w) 26131 | -3/Research | Destroyed by H-77 Assassin with Coil Gun Last Messages --------------- 26067_ Revision destroyed. 26079_ Dropped PL-3XN's Ring of Power. 26087_ System corrupted: Energy discharge (-32). 26097_ Acquired Imp. Targeting Computer. 26108_ System corrupted: Component data lost. 26118_ Slug penetrates Wall. 26120_ Acquired 10 matter. 26121_ Slug penetrates Wall. 26122_ Critical hit (Impale). 26124_ Penetrated by Slug. 26124_ Slug penetrates Wall. 26124_ Penetrated by Slug. 26124_ Med. Treads destroyed. 26125_ Slug penetrates Wall. 26126_ C-45 Heavy ARC bursts open, deploying its payload. 26126_ G-73 Enforcer unfolds itself. 26126_ G-67 Veteran unfolds itself. 26126_ Critical hit (Burn: +37). 26128_ Slug penetrates Wall. 26131_ Penetrated by Slug. Map ----- +----------------------------------------------------+ | ?????????????????????????????????????????????????? | | ?????????#######?????????????????????????????????? | | ????????? ?????????????????????????????????? | | ?????????? ??????????????????????????????????? | | ?????????? ??????????????????????????????????? | | ???? ???? ???????????????????????????????????? | | ???? ????? ???????????????????????????????????? | | ####/#######+####????????????????????????????????? | | # % +????????????????????????????????? | | # ! ###????????????????????????????????? | | = =%!#??????????????????????????????????? | | =%%%[ =%#####?#?????? ???????????????????? | | [[[ # *%= # #?????? ??[?????????????????? | | % #=[=## # #??### % % *????????????????? | | "#### %! [%! ? ??? ????????????? | | ###### =% ## [##"""; # !% ## ????????????? | | # [ %## ######;; #g # ? ???????????? | | # # = # # #g### ? ??????????? | | " [=%% #! # #? ??????????? | | " #==%%[= # # ## =?????????? | | ##" =%%[%%= # ! + % ?????????? | | # # !=[[[!% # ! ?????????? | | ######""" [!!## %###### # ????????? | | #????## "[%[ =##=##???# ????????? | | #"?????###[%*=[##[;##### ???????? | | ? ??????#=[<=!%!!%!=%*!g@ ???????? | | ? ??????#[*!%!#*=#####[ggK ???????? | | ? ?????# ![=%##]#???#gK! ## #??????????? | | ? ????###=####+#???#g%! ## ##? ???????????? | | ? ???????#%#??%!!???#*%= # #??????#### | | ?? ???????#=#??]!!???#%#!=! #??????# | | ?? ???????#%+? ??#[%!=!=*% # #??????# | | ??? ???????#! ? ??#!##%/h=![" +??????+ | | ??????????? # #?#!%#%*%!=%# #??????# | | ???????????# ? #?#!%=[%=* #?#####???????# | | ???????????#=# ####?#[%%%#;####?????????????# | | ????????????=## ?????#!%! # !#?????????????# | | ????????????[? ?????#%! # ####??????????# | | ???????????? ?# #?????#%[%=#= ## ############ | | ???????????? ? ??????#*=!!#*% # ## | | ?????????????? ??????# *!]+=%! #=]] ?# | | ??????????????= ??????####%# [= #=]] """ ## | | ?????????????????????????#="= ! #]] """ ####+ | | ?????????????????????????#%=%[ # & """ # | | ?????????????????????????#="=%! " """ + | | ?????????????????????????#[ !=### """ # | | ?????????????????????????# [ [ + """ # | | ????????????????????????## #! ## """ # ### | | ????????????????????????# # # # #?? | | ????????????????????????# # = ### # #?? | +----------------------------------------------------+ Best States ------------- Heat Dissipation 127 Coolant Potential 120 Energy Generation 29 Energy Capacity 350 Matter Stores 300 Matter Capacity 300 Sight Range 22 Robot Scan Range 16 Terrain Scan Density 10 Additional Mass Support 9 Armor Coverage 600 Resistance: KI 30 Resistance: EM 75 Weapon Cycling 15 Evasion (%) 50 Targeting Accuracy 18 Target Analysis 8 Core Analysis 8 Recoil Reduction 2 Salvage Targeting 3 Relay Coupler Types 1 Relay Coupler Value 28 Item Schematics ----------------- None Robot Schematics ------------------ None Fabricated ------------ K-01 Serf | x4 | -5/Factory | Preloaded Hvy. Gauss Cannon | x2 | -4/Factory | Preloaded Repaired ---------- Adv. KE Penetrator | 1% | -5/Factory Studied --------- Lgt. Treads | -8/Materials | Hacked Wheel | -8/Materials | Hacked KE Penetrator | -5/Factory | Hacked Hyp. Coil Gun | -5/Factory | Hacked Gauss Rifle | -5/Factory | Hacked Railgun | -3/Research | Hacked Alien Tech Used ----------------- None Achievements -------------- None Challenges ------------ None Game ------ Seed CouplerSystemLeg Manual? 0 Play Time 02:46:05 Cumulative 652.3 hours Start 2026.09.12 @ 14:13:51 End 2026.09.12 @ 19:37:11 Sessions 3 Manual Loads 0 Difficulty Rogue Special Mode None Game No. 355 Rogue 355 Adventurer 0 Explorer 0 Win Type - Total 21 Types 10/2/3/1/1/0/1/1/0/2 Lore% 86 Gallery% 85 Achievement% 77 Wizard Run 0 Options --------- Layout 0 ASCII 0 Keyboard 0 Movement Mouse Keybinds 0 Fullscreen 1 Font 18/SmallcapsGlow Map View 76x50 Zoom Use 0% Tactical HUD 1 Map Filters NONE Filters NONE Steam 1 RUN: 473ffe03-72af-4037-abe8-988f3ce92e80